fUSD/lending_fUSD_20250108
["ID","MTS","AMOUNT","RATE_DAILY","PERIOD"]
[348188219,1736373053409,-781.77,0.00012118,2]
[348188220,1736373053419,-500.0,0.00012118,2]
[348188221,1736373053428,-500.0,0.00012118,2]
[348188222,1736373053438,-1535.89,0.00012118,2]
[348188223,1736373053448,-1086.26,0.00012118,2]
[348188224,1736373053457,-500.0,0.00012161,2]
[348188225,1736373053466,-967.9,0.00012161,2]
[348188226,1736373053476,-500.0,0.00012161,2]
[348188227,1736373053486,-500.0,0.00012161,2]
[348188228,1736373053495,-500.0,0.00012161,2]
[348188229,1736373053504,-500.0,0.00012161,2]
[348188230,1736373053514,-878.49,0.00012161,2]
[348188231,1736373053523,-1106.74,0.00012161,2]
[348188232,1736373053533,-500.0,0.00012161,2]
[348188233,1736373053542,-1463.22,0.00012161,2]
[348188234,1736373053552,-713.96,0.00012161,2]
[348188235,1736373053561,-4522.07,0.00012161,2]
[348188236,1736373053571,-500.0,0.00012161,2]
[348188237,1736373053580,-798.12,0.00012161,2]
[348188238,1736373053590,-2244.35,0.00012164,2]
[348188239,1736373053599,-510.997307,0.00012191,2]
[348188240,1736373053609,-516.894415,0.00012191,2]
[348188241,1736373053618,-500.0,0.00012191,2]
[348188242,1736373053627,-711.86,0.00012191,2]
[348188243,1736373053637,-500.0,0.00012191,2]
[348188244,1736373053646,-847.86,0.00012191,2]
[348188245,1736373053655,-1082.62,0.00012191,2]
[348188246,1736373053665,-500.0,0.00012191,2]
[348188247,1736373053675,-500.0,0.00012191,2]
[348188248,1736373053684,-956.78,0.00012191,2]
[348188249,1736373053694,-500.0,0.00012191,2]
[348188250,1736373053703,-500.0,0.00012191,2]
[348188251,1736373053713,-525.92,0.00012191,2]
[348188252,1736373053722,-502.2,0.00012191,2]
[348188253,1736373053732,-724.59,0.00012191,2]
[348188254,1736373053741,-205.03610921,0.00012191,2]
[348188255,1736373053751,-349.6033763,0.00012191,2]
[348188256,1736373053760,-547.69,0.00012191,2]
[348188257,1736373053770,-515.19,0.00012191,2]
[348188258,1736373053779,-1326.09,0.00012191,2]
[348188259,1736373053788,-500.0,0.00012191,2]
[348188260,1736373053798,-576.81,0.00012191,2]
[348188261,1736373053807,-500.0,0.00012191,2]
[348188262,1736373053817,-1220.57,0.00012191,2]
[348188263,1736373053827,-500.0,0.00012191,2]
[348188264,1736373053836,-561.72,0.00012191,2]
[348188265,1736373053846,-3271.31,0.00012191,2]
[348188266,1736373053855,-500.0,0.00012191,2]
[348188267,1736373053865,-500.0,0.00012191,2]
[348188268,1736373053875,-2474.11,0.00012191,2]
[348188269,1736373053884,-194.254759,0.00012191,2]
[348188270,1736373053894,-500.0,0.00012191,2]
[348188271,1736373053903,-500.0,0.00012191,2]
[348188272,1736373053913,-591.38,0.00012191,2]
[348188273,1736373053923,-500.0,0.00012191,2]
[348188274,1736373053932,-500.0,0.00012191,2]
[348188275,1736373053942,-500.0,0.00012191,2]
[348188276,1736373053951,-500.0,0.00012191,2]
[348188277,1736373053961,-1301.31,0.00012191,2]
[348188278,1736373053971,-500.0,0.00012191,2]
[348188279,1736373053980,-500.0,0.00012191,2]
[348188280,1736373053990,-500.0,0.00012191,2]
[348188281,1736373053999,-500.0,0.00012191,2]
[348188282,1736373054009,-500.0,0.00012191,2]
[348188283,1736373054018,-1723.29,0.00012191,2]
[348188284,1736373054028,-1064.06,0.00012191,2]
[348188285,1736373054038,-500.0,0.00012191,2]
[348188286,1736373054048,-517.5,0.00012191,2]
[348188287,1736373054058,-500.0,0.00012191,2]
[348188288,1736373054218,-1073.57,0.00012191,2]
[348188289,1736373054228,-201.95941125,0.00012191,2]
[348188290,1736373054238,-2451.19,0.00012191,2]
[348188291,1736373054247,-500.0,0.00012191,2]
[348188292,1736373054256,-907.11,0.00012191,2]
[348188293,1736373054267,-500.0,0.00012191,2]
[348188294,1736373054277,-500.0,0.00012191,2]
[348188295,1736373054286,-609.11,0.00012191,2]
[348188296,1736373054296,-1984.27,0.00012191,2]
[348188297,1736373054305,-514.57,0.00012191,2]
[348188298,1736373054314,-655.42,0.00012191,2]
[348188299,1736373054323,-2999.06,0.00012191,2]
[348188300,1736373054333,-500.0,0.00012191,2]
[348188301,1736373054342,-1250.12,0.00012191,2]
[348188302,1736373054352,-2222.82,0.00012191,2]
[348188303,1736373054361,-500.0,0.00012191,2]
[348188304,1736373054370,-500.0,0.00012191,2]
[348188305,1736373054379,-2328.78,0.00012191,2]
[348188306,1736373054388,-500.0,0.00012191,2]
[348188307,1736373054397,-2289.73,0.00012191,2]
[348188308,1736373054406,-1908.11,0.00012191,2]
[348188309,1736373054415,-607.08,0.00012191,2]
[348188310,1736373054423,-212.60506265,0.00012191,2]
[348188311,1736373054431,-1282.71,0.00012191,2]
[348188312,1736373054441,-1241.02,0.00012191,2]
[348188313,1736373054448,-500.0,0.00012191,2]
[348188314,1736373054457,-1035.45,0.00012191,2]
[348188315,1736373054465,-500.0,0.00012191,2]
[348188316,1736373054475,-744.89,0.00012191,2]
[348188317,1736373054484,-1408.11,0.00012191,2]
[348188318,1736373054493,-755.08,0.00012191,2]
[348188319,1736373054503,-500.0,0.00012191,2]
[348188320,1736373054512,-500.0,0.00012191,2]
[348188321,1736373054521,-533.24,0.00012191,2]
[348188322,1736373054530,-755.48,0.00012191,2]
[348188323,1736373054540,-1800.82,0.00012191,2]
[348188324,1736373054549,-531.7,0.00012191,2]
[348188325,1736373054559,-502.63,0.00012191,2]
[348188326,1736373054569,-601.12,0.00012191,2]
[348188327,1736373054578,-500.0,0.00012191,2]
[348188328,1736373054587,-2001.01,0.00012191,2]
[348188329,1736373054597,-1086.73,0.00012191,2]
[348188330,1736373054607,-500.0,0.00012191,2]
[348188331,1736373054616,-500.0,0.00012191,2]
[348188332,1736373054626,-1215.79,0.00012191,2]
[348188333,1736373054635,-838.08,0.00012191,2]
[348188334,1736373054645,-2411.54,0.00012191,2]
[348188335,1736373054655,-500.0,0.00012191,2]
[348188336,1736373054664,-500.0,0.00012191,2]
[348188337,1736373054673,-828.72,0.00012229,2]
[348188338,1736373054683,-943.03,0.00012229,2]
[348188339,1736373054693,-887.98,0.00012229,2]
[348188340,1736373054702,-920.84,0.0001223,2]
[348188341,1736373054712,-1384.54,0.0001223,2]
[348188342,1736373054721,-655.39,0.0001223,2]
[348188343,1736373054730,-779.62,0.0001223,2]
[348188344,1736373054740,-979.01,0.0001223,2]
[348188345,1736373054749,-1317.62,0.0001223,2]
[348188346,1736373054759,-794.97,0.0001223,2]
[348188347,1736373054768,-509.56,0.0001223,2]
[348188348,1736373054779,-500.0,0.0001223,2]
[348188349,1736373054788,-500.0,0.00012231,2]
[348188350,1736373054799,-500.0,0.00012231,2]
[348188351,1736373054809,-1917.45,0.00012231,2]
[348188352,1736373054819,-200.58539655,0.00012233,2]
[348188353,1736373054828,-500.0,0.0001227,2]
[348188354,1736373054838,-500.0,0.0001227,2]
[348188355,1736373054847,-500.0,0.0001227,2]
[348188356,1736373054856,-500.0,0.0001227,2]
[348188357,1736373054865,-992.15894642,0.0001227,2]
[348188358,1736373054875,-1000.0,0.0001227,2]
[348188359,1736373054884,-1000.0,0.0001227,2]
[348188360,1736373054894,-1000.0,0.0001227,2]
[348188361,1736373054903,-1000.0,0.0001227,2]
[348188362,1736373054913,-1000.0,0.0001227,2]
[348188363,1736373054922,-1000.0,0.0001227,2]
[348188364,1736373054932,-1000.0,0.0001227,2]
[348188365,1736373054941,-1000.0,0.0001227,2]
[348188366,1736373054950,-500.0,0.00012298,2]
[348188367,1736373054960,-2244.35,0.00012298,2]
[348188368,1736373054970,-10661.15017819,0.00012299,2]
[348188369,1736373054979,-2000.0,0.00012299,2]
[348188370,1736373054988,-2000.0,0.00012299,2]
[348188371,1736373054998,-847.6129,0.00012299,2]
[348188372,1736373055007,-156.577727,0.00012299,3]
[348188373,1736373055016,-2000.0,0.00012299,2]
[348188374,1736373055026,-2244.35,0.00012299,2]
[348188375,1736373055035,-2244.35,0.00012299,2]
[348188376,1736373055045,-2244.35,0.00012299,2]
[348188377,1736373055055,-2244.35,0.00012299,2]
[348188378,1736373055065,-2244.35,0.00012299,2]
[348188379,1736373055075,-2244.35,0.00012299,2]
[348188380,1736373055084,-2244.35,0.00012299,2]
[348188381,1736373055094,-2244.35,0.00012299,2]
[348188382,1736373055104,-2244.35,0.00012299,2]
[348188383,1736373055113,-2244.35,0.00012299,2]
[348188384,1736373055123,-2244.35,0.00012299,2]
[348188385,1736373055133,-2244.35,0.00012299,2]
[348188386,1736373055143,-2244.35,0.00012299,2]
[348188387,1736373055153,-2244.35,0.00012299,2]
[348188388,1736373055163,-2244.35,0.00012299,2]
[348188389,1736373055173,-2244.35,0.00012299,2]
[348188390,1736373055184,-2244.35,0.00012299,2]
[348188391,1736373055194,-2244.35,0.00012299,2]
[348188392,1736373055204,-2244.54,0.00012299,2]
[348188393,1736373055213,-999.0,0.00012299,2]
[348188394,1736373055223,-3337651.399875,0.000123,2]
[348188395,1736373055232,-160233.38977211,0.000123,2]
[348188396,1736373055471,-9493.39549077,0.000123,2]
[348188397,1736373055490,-2845.29179711,0.000122,2]
[348188398,1736373055500,-300870.27456439,0.000123,2]
[348188399,1736373055510,-1022.0,0.000123,2]
[348188400,1736373055524,-10182.53628286,0.000123,2]
[348188401,1736373055536,-1721.48259596,0.000123,2]
[348188402,1736373055566,-4865.79896752,0.000123,2]
[348188403,1736373055578,-2513.2158088,0.000123,2]
[348188404,1736373055589,-873.47954337,0.000123,2]
[348188405,1736373055600,-517.7691157,0.000123,2]
[348188406,1736373055612,-4000.0,0.000123,2]
[348188407,1736373055622,-1363.83747749,0.000123,2]
[348188408,1736373055669,-468.395,0.000123,2]
[348188409,1736373055684,-474.1866154,0.000123,2]
[348188410,1736373056010,-396.10239987,0.0001,2]
[348188411,1736373056022,-500.0,0.00010547,2]
[348188412,1736373056033,-1912.69,0.00012229,2]
[348188413,1736373056048,-720.85760046,0.000123,2]
[348188414,1736373056063,-495.00000005,0.000123,2]
[348188415,1736373056097,-500.0,0.00010821,2]
[348188416,1736373056111,-2578.83837039,0.000123,2]
[348188417,1736373056123,-432.61786955,0.000123,2]
[348188418,1736373056136,-330.375,0.000123,2]
[348188419,1736373056150,-3719.27464023,0.000123,2]
[348188420,1736373056165,-1866.05,0.000123,2]
[348188421,1736373056196,-39090.44421459,0.000123,2]
[348188422,1736373056209,-2768.128,0.000123,2]
[348188423,1736373056223,-4126.13424394,0.000123,2]
[348188424,1736373056236,-265.7675427,0.000123,2]
[348188425,1736373056251,-2930.2090049,0.000123,2]
[348188426,1736373056267,-971.70898079,0.000123,2]
[348188427,1736373056635,-500.0,9.999e-05,2]
[348188428,1736373056647,-500.0,9.999e-05,2]
[348188429,1736373056659,-306.39,0.00010273,2]
[348188430,1736373056671,-500.0,0.00011095,2]
[348188431,1736373056682,-376.70200655,0.00011369,2]
[348188432,1736373056694,-5119.74521121,0.000123,2]
[348188433,1736373056724,-13624.54828251,0.000123,2]
[348188434,1736373056978,-721.22,9.9e-05,2]
[348188435,1736373056990,-4241.82829066,9.9e-05,2]
[348188436,1736373057003,-36.95170934,9.9e-05,2]
[348188437,1736373057012,-500.0,9.999e-05,2]
[348188438,1736373057022,-503.86448063,9.999e-05,2]
[348188439,1736373057031,-396.10239987,0.0001,2]
[348188440,1736373057041,-192485.23596387,0.000123,2]
[348188441,1736373057052,-59519.57596014,0.000123,2]
[348188442,1736373057063,-996.32490086,0.000123,2]
[348188443,1736373057117,-4121.24551977,0.000123,2]
[348188444,1736373057129,-1219.82042978,0.000123,2]
[348188445,1736373057140,-1695.07477946,0.000123,2]
[348188446,1736373057152,-866.37474104,0.000123,2]
[348188447,1736373057163,-12532.46973317,0.000123,2]
[348188448,1736373057174,-7391.51999648,0.000123,2]
[348188449,1736373057190,-4366.0,0.000123,2]
[348188450,1736373057201,-26267.4670628,0.000123,2]
[348188451,1736373057245,-949.58287885,0.000123,2]
[348188452,1736373057258,-16020.74743192,0.000123,2]
[348188453,1736373057272,-1065.83165509,0.000123,2]
[348188454,1736373057283,-589.5000041,0.000123,2]
[348188455,1736373057295,-1787.30255397,0.000123,2]
[348188458,1736373304437,282.84765411,8.3e-05,2]
[348188459,1736373570814,150.0,0.00019224,120]
[348188460,1736373603141,282.84765411,8.3e-05,2]
[348188461,1736373849917,500.0,0.0002,120]
[348188462,1736373850155,500.0,0.0002,120]
[348188463,1736373850407,517.36837504,0.0002,120]
[348188464,1736373903165,282.84765411,8.3e-05,2]
[348188474,1736374082326,907.56,8.219e-05,2]
[348188504,1736374231671,-1301.24185652,9.259e-05,2]
[348188505,1736374231897,-1748.20828921,9.259e-05,2]
[348188509,1736374237716,-250.0,9.259e-05,2]
[348188510,1736374237726,-250.0,9.259e-05,2]
[348188511,1736374237736,-159.91,9.81e-05,2]
[348188512,1736374237746,-2000.0,9.819e-05,2]
[348188513,1736374237755,-644.92,9.862e-05,2]
[348188514,1736374237765,-1000.0,9.906e-05,2]
[348188515,1736374237774,-150.0,9.998e-05,2]
[348188516,1736374237784,-500.78585461,9.999e-05,2]
[348188517,1736374237794,-503.30992833,9.999e-05,2]
[348188518,1736374237803,-622.10170607,9.999e-05,2]
[348188519,1736374237812,-500.80795696,9.999e-05,2]
[348188520,1736374237822,-639.90165029,9.999e-05,2]
[348188521,1736374237832,-198.17610873,9.999e-05,2]
[348188522,1736374237842,-500.0,9.999e-05,2]
[348188523,1736374237851,-500.0,9.999e-05,2]
[348188524,1736374237861,-500.0,9.999e-05,2]
[348188525,1736374237870,-502.02745025,9.999e-05,2]
[348188526,1736374237880,-206.86468456,9.999e-05,2]
[348188528,1736374237890,-500.0,9.999e-05,2]
[348188530,1736374237900,-209.36669765,9.999e-05,2]
[348188532,1736374237909,-500.0,9.999e-05,2]
[348188534,1736374237918,-500.0,9.999e-05,2]
[348188535,1736374237930,-504.23125441,9.999e-05,2]
[348188537,1736374237939,-500.0,9.999e-05,2]
[348188539,1736374237949,-837.69,9.999e-05,2]
[348188541,1736374237958,-1266.37,9.999e-05,2]
[348188543,1736374237968,-500.0,9.999e-05,2]
[348188546,1736374237978,-500.0,9.999e-05,2]
[348188548,1736374237987,-500.0,9.999e-05,2]
[348188550,1736374237997,-500.0,9.999e-05,2]
[348188552,1736374238007,-500.0,9.999e-05,2]
[348188554,1736374238017,-500.0,9.999e-05,2]
[348188555,1736374238027,-500.0,9.999e-05,2]
[348188558,1736374238036,-500.0,9.999e-05,2]
[348188559,1736374238046,-787.11,9.999e-05,2]
[348188560,1736374238055,-201.11306961,9.999e-05,2]
[348188563,1736374238065,-500.0,9.999e-05,2]
[348188565,1736374238075,-500.0,9.999e-05,2]
[348188567,1736374238085,-1166.62,9.999e-05,2]
[348188569,1736374238094,-500.0,9.999e-05,2]
[348188571,1736374238104,-500.0,9.999e-05,2]
[348188573,1736374238114,-565.92,9.999e-05,2]
[348188575,1736374238123,-500.0,9.999e-05,2]
[348188577,1736374238133,-500.0,9.999e-05,2]
[348188579,1736374238143,-519.1,9.999e-05,2]
[348188581,1736374238152,-508.78,9.999e-05,2]
[348188583,1736374238162,-500.0,9.999e-05,2]
[348188585,1736374238171,-325.25,9.999e-05,2]
[348188587,1736374238184,-645.0072589,9.999e-05,2]
[348188589,1736374238194,-500.0,9.999e-05,2]
[348188591,1736374238204,-500.0,9.999e-05,2]
[348188593,1736374238213,-500.0,9.999e-05,2]
[348188595,1736374238222,-500.0,9.999e-05,2]
[348188597,1736374238232,-500.0,9.999e-05,2]
[348188598,1736374238241,-500.0,9.999e-05,2]
[348188599,1736374238250,-500.0,9.999e-05,2]
[348188600,1736374238259,-500.0,9.999e-05,2]
[348188601,1736374238269,-500.0,9.999e-05,2]
[348188602,1736374238278,-1205.93,9.999e-05,2]
[348188603,1736374238287,-500.0,9.999e-05,2]
[348188604,1736374238296,-500.0,9.999e-05,2]
[348188605,1736374238305,-500.0,9.999e-05,2]
[348188606,1736374238314,-500.0,9.999e-05,2]
[348188607,1736374238323,-500.0,9.999e-05,2]
[348188608,1736374238332,-500.0,9.999e-05,2]
[348188609,1736374238342,-500.0,9.999e-05,2]
[348188611,1736374238351,-712.18,9.999e-05,2]
[348188613,1736374238360,-500.0,9.999e-05,2]
[348188615,1736374238369,-500.0,9.999e-05,2]
[348188617,1736374238379,-500.0,9.999e-05,2]
[348188619,1736374238388,-500.0,9.999e-05,2]
[348188620,1736374238397,-612.36,9.999e-05,2]
[348188621,1736374238406,-500.0,9.999e-05,2]
[348188622,1736374238415,-500.0,9.999e-05,2]
[348188623,1736374238426,-500.0,9.999e-05,2]
[348188624,1736374238437,-500.0,9.999e-05,2]
[348188625,1736374238447,-595.66,9.999e-05,2]
[348188626,1736374238456,-500.0,9.999e-05,2]
[348188628,1736374238466,-2799.24,9.999e-05,2]
[348188630,1736374238475,-1963.81,9.999e-05,2]
[348188632,1736374238485,-1963.81,9.999e-05,2]
[348188634,1736374238494,-1963.81,9.999e-05,2]
[348188636,1736374238503,-1963.81,9.999e-05,2]
[348188638,1736374238514,-1963.81,9.999e-05,2]
[348188640,1736374238523,-1963.81,9.999e-05,2]
[348188642,1736374238532,-1963.81,9.999e-05,2]
[348188644,1736374238542,-1963.81,9.999e-05,2]
[348188646,1736374238551,-1963.81,9.999e-05,2]
[348188648,1736374238560,-1963.81,9.999e-05,2]
[348188650,1736374238571,-1963.81,9.999e-05,2]
[348188652,1736374238580,-548.18,9.999e-05,2]
[348188654,1736374238593,-1963.81,9.999e-05,2]
[348188656,1736374238602,-1963.81,9.999e-05,2]
[348188658,1736374238612,-1963.81,9.999e-05,2]
[348188660,1736374238622,-1302.79,9.999e-05,2]
[348188662,1736374238631,-1963.81,9.999e-05,2]
[348188664,1736374238641,-1963.81,9.999e-05,2]
[348188666,1736374238650,-1963.81,9.999e-05,2]
[348188668,1736374238660,-1963.81,9.999e-05,2]
[348188670,1736374238670,-1963.81,9.999e-05,2]
[348188672,1736374238682,-1963.81,9.999e-05,2]
[348188674,1736374238691,-1963.81,9.999e-05,2]
[348188676,1736374238700,-1963.81,9.999e-05,2]
[348188678,1736374238710,-1963.81,9.999e-05,2]
[348188680,1736374238719,-1963.81,9.999e-05,2]
[348188682,1736374238728,-500.0,9.999e-05,2]
[348188684,1736374238738,-500.0,9.999e-05,2]
[348188686,1736374238747,-500.0,9.999e-05,2]
[348188688,1736374238756,-1613.85,9.999e-05,2]
[348188690,1736374238765,-500.0,9.999e-05,2]
[348188692,1736374238775,-1038.02,9.999e-05,2]
[348188694,1736374238784,-500.0,9.999e-05,2]
[348188696,1736374238793,-500.0,9.999e-05,2]
[348188698,1736374238803,-500.0,9.999e-05,2]
[348188700,1736374238812,-1455.22,9.999e-05,2]
[348188702,1736374238821,-2149.02,9.999e-05,2]
[348188704,1736374238831,-500.0,9.999e-05,2]
[348188706,1736374238840,-1224.29,9.999e-05,2]
[348188708,1736374238850,-500.0,9.999e-05,2]
[348188710,1736374238859,-4333.65,9.999e-05,2]
[348188712,1736374238868,-500.0,9.999e-05,2]
[348188714,1736374238877,-1960.58,9.999e-05,2]
[348188716,1736374238887,-1063.62,9.999e-05,2]
[348188718,1736374238896,-568.79,9.999e-05,2]
[348188721,1736374238909,-2372.76,9.999e-05,2]
[348188723,1736374238918,-500.0,9.999e-05,2]
[348188724,1736374238928,-1185.4,9.999e-05,2]
[348188726,1736374238938,-1874.57,9.999e-05,2]
[348188729,1736374238948,-1217.99,9.999e-05,2]
[348188731,1736374238957,-500.0,9.999e-05,2]
[348188732,1736374238966,-500.0,9.999e-05,2]
[348188734,1736374238976,-920.56,9.999e-05,2]
[348188736,1736374238987,-2562.5,9.999e-05,2]
[348188738,1736374238997,-1014.83,9.999e-05,2]
[348188740,1736374239006,-1754.94049924,0.00010135,4]
[348188742,1736374239016,-755.28,0.00010137,2]
[348188744,1736374239025,-837.69,0.00010273,2]
[348188746,1736374239035,-1266.37,0.00010273,2]
[348188748,1736374239044,-500.0,0.00010273,2]
[348188750,1736374239053,-500.0,0.00010273,2]
[348188752,1736374239062,-297.8202975,0.00010273,2]
[348188754,1736374239071,-550.86,0.00010273,2]
[348188756,1736374239081,-500.0,0.00010273,2]
[348188758,1736374239090,-500.0,0.00010273,2]
[348188760,1736374239100,-500.0,0.00010273,2]
[348188762,1736374239109,-787.11,0.00010273,2]
[348188764,1736374239119,-500.0,0.00010273,2]
[348188766,1736374239128,-500.0,0.00010273,2]
[348188768,1736374239137,-1166.62,0.00010273,2]
[348188770,1736374239146,-500.0,0.00010273,2]
[348188772,1736374239155,-500.0,0.00010273,2]
[348188774,1736374239165,-565.92,0.00010273,2]
[348188776,1736374239175,-500.0,0.00010273,2]
[348188778,1736374239185,-500.0,0.00010273,2]
[348188780,1736374239195,-519.1,0.00010273,2]
[348188782,1736374239204,-508.78,0.00010273,2]
[348188784,1736374239214,-500.0,0.00010273,2]
[348188786,1736374239223,-500.0,0.00010273,2]
[348188788,1736374239233,-500.0,0.00010273,2]
[348188790,1736374239243,-500.0,0.00010273,2]
[348188792,1736374239252,-500.0,0.00010273,2]
[348188794,1736374239261,-500.0,0.00010273,2]
[348188796,1736374239271,-1205.93,0.00010273,2]
[348188798,1736374239281,-500.0,0.00010273,2]
[348188826,1736374239506,-500.0,0.00010273,2]
[348188828,1736374239516,-500.0,0.00010273,2]
[348188830,1736374239525,-500.0,0.00010273,2]
[348188832,1736374239535,-500.0,0.00010273,2]
[348188834,1736374239544,-712.18,0.00010273,2]
[348188836,1736374239553,-500.0,0.00010273,2]
[348188838,1736374239563,-500.0,0.00010273,2]
[348188840,1736374239576,-612.36,0.00010273,2]
[348188842,1736374239586,-500.0,0.00010273,2]
[348188844,1736374239595,-500.0,0.00010273,2]
[348188846,1736374239606,-500.0,0.00010273,2]
[348188848,1736374239615,-500.0,0.00010273,2]
[348188850,1736374239625,-595.66,0.00010273,2]
[348188852,1736374239634,-500.0,0.00010273,2]
[348188854,1736374239643,-2799.24,0.00010273,2]
[348188856,1736374239653,-548.18,0.00010273,2]
[348188858,1736374239664,-1302.79,0.00010273,2]
[348188860,1736374239675,-500.0,0.00010273,2]
[348188862,1736374239684,-500.0,0.00010273,2]
[348188864,1736374239694,-1613.85,0.00010273,2]
[348188866,1736374239703,-500.0,0.00010273,2]
[348188868,1736374239714,-1038.02,0.00010273,2]
[348188870,1736374239723,-500.0,0.00010273,2]
[348188872,1736374239732,-500.0,0.00010273,2]
[348188874,1736374239742,-1455.22,0.00010273,2]
[348188876,1736374239751,-2149.02,0.00010273,2]
[348188878,1736374239760,-500.0,0.00010273,2]
[348188880,1736374239770,-1224.29,0.00010273,2]
[348188882,1736374239779,-500.0,0.00010273,2]
[348188884,1736374239788,-4333.65,0.00010273,2]
[348188886,1736374239798,-500.0,0.00010273,2]
[348188888,1736374239807,-1960.58,0.00010273,2]
[348188890,1736374239816,-1063.62,0.00010273,2]
[348188892,1736374239825,-568.79,0.00010273,2]
[348188894,1736374239834,-2372.76,0.00010273,2]
[348188896,1736374239843,-500.0,0.00010273,2]
[348188898,1736374239853,-1185.4,0.00010273,2]
[348188900,1736374239862,-1874.57,0.00010273,2]
[348188902,1736374239871,-1217.99,0.00010273,2]
[348188904,1736374239881,-500.0,0.00010273,2]
[348188906,1736374239890,-500.0,0.00010273,2]
[348188908,1736374239899,-920.56,0.00010273,2]
[348188910,1736374239909,-2562.5,0.00010273,2]
[348188912,1736374239919,-1014.83,0.00010273,2]
[348188914,1736374239931,-3144.4001,0.00010447,2]
[348188916,1736374239941,-907.56,0.00010457,2]
[348188918,1736374239951,-500.0,0.00010546,2]
[348188920,1736374239961,-1475.16,0.00010546,2]
[348188922,1736374239970,-1755.78,0.00010546,2]
[348188924,1736374239979,-1061.59,0.00010546,2]
[348188926,1736374239989,-500.0,0.00010546,2]
[348188928,1736374239998,-687.93,0.00010546,2]
[348188930,1736374240007,-2314.79,0.00010546,2]
[348188932,1736374240017,-500.0,0.00010546,2]
[348188934,1736374240026,-500.0,0.00010546,2]
[348188936,1736374240035,-703.34,0.00010546,2]
[348188938,1736374240044,-500.0,0.00010546,2]
[348188940,1736374240054,-500.0,0.00010546,2]
[348188942,1736374240063,-1578.04,0.00010546,2]
[348188944,1736374240073,-500.0,0.00010546,2]
[348188946,1736374240083,-1348.88,0.00010546,2]
[348188948,1736374240094,-500.0,0.00010546,2]
[348188950,1736374240103,-500.0,0.00010546,2]
[348188952,1736374240113,-500.0,0.00010546,2]
[348188954,1736374240122,-500.0,0.00010546,2]
[348188955,1736374240130,-500.0,0.00010546,2]
[348188957,1736374240139,-837.69,0.00010547,2]
[348188959,1736374240149,-1266.37,0.00010547,2]
[348188961,1736374240158,-500.0,0.00010547,2]
[348188963,1736374240168,-500.0,0.00010547,2]
[348188966,1736374240179,-500.0,0.00010547,2]
[348188967,1736374240188,-787.11,0.00010547,2]
[348188969,1736374240197,-500.0,0.00010547,2]
[348188971,1736374240206,-500.0,0.00010547,2]
[348188973,1736374240216,-1166.62,0.00010547,2]
[348188975,1736374240225,-500.0,0.00010547,2]
[348188978,1736374240234,-565.92,0.00010547,2]
[348188979,1736374240244,-500.0,0.00010547,2]
[348188982,1736374240253,-500.0,0.00010547,2]
[348188984,1736374240264,-519.1,0.00010547,2]
[348188986,1736374240273,-508.78,0.00010547,2]
[348188987,1736374240282,-500.0,0.00010547,2]
[348188990,1736374240292,-500.0,0.00010547,2]
[348188991,1736374240301,-500.0,0.00010547,2]
[348188993,1736374240310,-500.0,0.00010547,2]
[348188995,1736374240319,-500.0,0.00010547,2]
[348188997,1736374240328,-1205.93,0.00010547,2]
[348188999,1736374240337,-298.14,0.00010547,2]
[348189001,1736374240346,-500.0,0.00010547,2]